Workbook

Sheet Sheet2
A1: DAFTAR NILAI ACTION PROGRAM
A2: STMIK AMIKOM PURWOKERTO
A3: Materi : Microsoft Office 2013
A5: NO | B5: STUDENT ID | C5: NAMA PESERTA | D5: NIM | E5: WORD | F5: EXCEL | G5: PPT | H5: AVERAGE | I5: RESULT
A6: 1 | B6: 19HL00003 | C6: ALIF NURAZIZ | D6: 16.11.0297 | E6: 76 | F6: 66 | G6: 76 | H6: 72.67 | I6: PASS
A7: 2 | B7: 19HL00004 | C7: RESTA RAMADANI | D7: 16.12.0216 | E7: 80 | F7: 86 | G7: 93 | H7: 86.33 | I7: PASS
A8: 3 | B8: 19HL00005 | C8: WIWIT KURNIA FATHIA | D8: 16.12.0160 | E8: 86 | F8: 76 | G8: 83 | H8: 81.67 | I8: PASS
A9: 4 | B9: 19HL00006 | C9: AFIANTO AGASI | D9: 16.11.0102 | E9: 86 | F9: 73 | G9: 70 | H9: 76.33 | I9: PASS
A10: 5 | B10: 19HL00007 | C10: FEBRI FITRA RAMADHAN | D10: 15.12.0074 | E10: 93 | F10: 80 | G10: 80 | H10: 84.33 | I10: PASS
A11: 6 | B11: 19HL00008 | C11: RAHMITA PRATAMA | D11: 16.11.0312 | E11: 86 | F11: 93 | G11: 90 | H11: 89.67 | I11: PASS
A12: 7 | B12: 19HL00009 | C12: LINATUN MASROHAH | D12: 16.11.0055 | E12: 80 | F12: 80 | G12: 90 | H12: 83.33 | I12: PASS
A13: 8 | B13: 19HL00010 | C13: HADMIYATI | D13: 16.11.0138 | E13: 80 | F13: 73 | G13: 83 | H13: 78.67 | I13: PASS
A14: 9 | B14: 19HL00011 | C14: SATRIA FACHREZA AKBAR | D14: 16.11.0231 | E14: 86 | F14: 83 | G14: 93 | H14: 87.33 | I14: PASS
A15: 10 | B15: 19HL00012 | C15: YUDHA PRAKOSO | D15: 16.11.0073 | E15: 86 | F15: 83 | G15: 96 | H15: 88.33 | I15: PASS
A16: 11 | B16: 19HL00013 | C16: YULI CAHYANINGSIH | D16: 16.11.0244 | E16: 83 | F16: 70 | G16: 76 | H16: 76.33 | I16: PASS
A17: 12 | B17: 19HL00014 | C17: DESI PUTRI PRATIWI | D17: 16.11.0164 | E17: 76 | F17: 80 | G17: 70 | H17: 75.33 | I17: PASS
A18: 13 | B18: 19HL00015 | C18: DINI APRILIA | D18: 16.11.0303 | E18: 70 | F18: 73 | G18: 83 | H18: 75.33 | I18: PASS
A19: 14 | B19: 19HL00016 | C19: ALUNG SUSLI | D19: 16.11.0292 | E19: 86 | F19: 50 | G19: 90 | H19: 75.33 | I19: PASS
A20: 15 | B20: 19HL00017 | C20: ZAKHROTUL LAELAFRITA | D20: 16.11.0187 | E20: 83 | F20: 60 | G20: 93 | H20: 78.67 | I20: PASS
A21: 16 | B21: 19HL00018 | C21: BUDIYANI HARTATI | D21: 16.11.0257 | E21: 93 | F21: 76 | G21: 93 | H21: 87.33 | I21: PASS
A22: 17 | B22: 19HL00019 | C22: SENIA TRISNA SAPUTRI | D22: 16.11.0340 | E22: 90 | F22: 63 | G22: 63 | H22: 72 | I22: PASS
A23: 18 | B23: 19HL00020 | C23: RAFLI FIRDAUSY IRAWAN | D23: 16.11.0247 | E23: 93 | F23: 96 | G23: 90 | H23: 93 | I23: PASS
A24: 19 | B24: 19HL00021 | C24: ZAENUR ROCHMAN | D24: 16.11.0068 | E24: 90 | F24: 96 | G24: 93 | H24: 93 | I24: PASS
A25: 20 | B25: 19HL00022 | C25: UPUT GINANJAR | D25: 16.11.0128 | E25: 73 | F25: 66 | G25: 80 | H25: 73 | I25: PASS
A26: 21 | B26: 19HL00023 | C26: YAHYA DANI LISHARYANTO | D26: 16.11.0070 | E26: 86 | F26: 90 | G26: 96 | H26: 90.67 | I26: PASS
A27: 22 | B27: 19HL00024 | C27: YANUAR ARVIANSYAH | D27: 16.11.0146 | E27: 83 | F27: 80 | G27: 93 | H27: 85.33 | I27: PASS
A28: 23 | B28: 19HL00025 | C28: FAIZ RAMADANI | D28: 16.12.0096 | E28: 86 | F28: 80 | G28: 93 | H28: 86.33 | I28: PASS
A29: 24 | B29: 19HL00026 | C29: HARIS MUFRONI | D29: 16.12.0118 | E29: 73 | F29: 70 | G29: 80 | H29: 74.33 | I29: PASS
A30: 25 | B30: 19HL00027 | C30: HANIF SATRIA NUGRAHA | D30: 16.12.0085 | E30: 83 | F30: 76 | G30: 96 | H30: 85 | I30: PASS
A31: 26 | B31: 19HL00028 | C31: AMBARSARI UTAMI | D31: 16.12.0021 | E31: 83 | F31: 83 | G31: 86 | H31: 84 | I31: PASS
A32: 27 | B32: 19HL00029 | C32: EFINA NAWANG NOVIANTI | D32: 16.12.0170 | E32: 80 | F32: 86 | G32: 90 | H32: 85.33 | I32: PASS
A33: 28 | B33: 19HL00030 | C33: ARUM RATNA SARI DEWI | D33: 16.12.0138 | E33: 83 | F33: 73 | G33: 83 | H33: 79.67 | I33: PASS
A34: 29 | B34: 19HL00031 | C34: MIYAT SUTOPO | D34: 16.12.0022 | E34: 76 | F34: 93 | G34: 70 | H34: 79.67 | I34: PASS
A35: 30 | B35: 19HL00032 | C35: LUTFIANA RAHAYU UTAMI | D35: 16.12.0217 | E35: 90 | F35: 80 | G35: 76 | H35: 82 | I35: PASS
A36: 31 | B36: 19HL00033 | C36: PANGKI PRADANA | D36: 16.12.0007 | E36: 76 | F36: 86 | G36: 66 | H36: =ROUND(AVERAGE(E36:G36),2) -> 76 | I36: =IF(H36>=55,"PASS", "FAIL") -> PASS
A37: 32 | B37: 19HL00034 | C37: NITA PURNAMASARI | D37: 16.12.0095 | E37: 83 | F37: 66 | G37: 63 | H37: =ROUND(AVERAGE(E37:G37),2) -> 70.67 | I37: =IF(H37>=55,"PASS", "FAIL") -> PASS
A38: 33 | B38: 19HL00035 | C38: NUR WIBI NUGROHO PUTRI | D38: 16.12.0152 | E38: 96 | F38: 86 | G38: 96 | H38: 92.67 | I38: PASS
A39: 34 | B39: 19HL00036 | C39: FIKA ZULFA | D39: 16.12.0194 | E39: 63 | F39: 86 | G39: 80 | H39: 76.33 | I39: PASS
A40: 35 | B40: 19HL00037 | C40: ESTRIANA KRISDIANTARI | D40: 16.12.0147 | E40: 80 | F40: 83 | G40: 86 | H40: 83 | I40: PASS
A41: 36 | B41: 19HL00038 | C41: FERDIAN EKA SAPUTRA | D41: 14.12.0051 | E41: 70 | F41: 83 | G41: 76 | H41: 76.33 | I41: PASS
A42: 37 | B42: 19HL00039 | C42: MUHAMAD MIFTAHUDIN | D42: 16.12.0139 | E42: 66 | F42: 76 | G42: 76 | H42: 72.67 | I42: PASS
A43: 38 | B43: 19HL00040 | C43: SETIYAWAN | D43: 16.12.0020 | E43: 63 | F43: 60 | G43: 86 | H43: 69.67 | I43: PASS
A44: 39 | B44: 19HL00041 | C44: AFRIANI RAHAYU | D44: 16.12.0174 | E44: 76 | F44: 96 | G44: 86 | H44: =ROUND(AVERAGE(E44:G44),2) -> 86 | I44: =IF(H44>=55,"PASS", "FAIL") -> PASS
A45: 40 | B45: 19HL00042 | C45: VITA MELIN NURCHASANAH | D45: 16.12.0177 | E45: 86 | F45: 80 | G45: 60 | H45: 75.33 | I45: PASS
A46: 41 | B46: 19HL00043 | C46: DEVI AYU INDRIYANI | D46: 16.12.0080 | E46: 83 | F46: 76 | G46: 66 | H46: 75 | I46: PASS
A47: 42 | B47: 19HL00044 | C47: TRIANA YULISTIA | D47: 16.12.0181 | E47: 73 | F47: 60 | G47: 70 | H47: 67.67 | I47: PASS
A48: 43 | B48: 19HL00045 | C48: AFRILIANI EFA ARSINTA | D48: 16.12.0191 | E48: 96 | F48: 66 | G48: 83 | H48: 81.67 | I48: PASS
A49: 44 | B49: 19HL00046 | C49: ARINI AMIRUL HAQI | D49: 16.12.0071 | E49: 93 | F49: 70 | G49: 96 | H49: 86.33 | I49: PASS
A50: 45 | B50: 19HL00047 | C50: WILA AUDINA | D50: 16.12.0106 | E50: 86 | F50: 76 | G50: 70 | H50: =ROUND(AVERAGE(E50:G50),2) -> 77.33 | I50: =IF(H50>=55,"PASS", "FAIL") -> PASS
A51: 46 | B51: 19HL00048 | C51: ARYUSTIAN STYA RAMADHAN | D51: 16.12.0115 | E51: 86 | F51: 90 | G51: 86 | H51: 87.33 | I51: PASS
A52: 47 | B52: 19HL00049 | C52: RIFKI HIDAYAT | D52: 16.12.0089 | E52: 80 | F52: 93 | G52: 83 | H52: 85.33 | I52: PASS
A53: 48 | B53: 19HL00050 | C53: AKBHAR PUTRA PRATAMA | D53: 18.12.0002 | E53: 73 | F53: 86 | G53: 93 | H53: 84 | I53: PASS
A54: 49 | B54: 19HL00051 | C54: DEDE MISBAHUL MUNIR | D54: 16.12.0012 | E54: 93 | F54: 90 | G54: 96 | H54: 93 | I54: PASS
A55: 50 | B55: 19HL00052 | C55: PRISKI FAJAR EKSANDI | D55: 16.12.0156 | E55: 86 | F55: 63 | G55: 73 | H55: 74 | I55: PASS
A56: 51 | B56: 19HL00053 | C56: ALFI MAHARDIKA | D56: 14.12.0254 | E56: 66 | F56: 66 | G56: 60 | H56: =ROUND(AVERAGE(E56:G56),2) -> 64 | I56: =IF(H56>=55,"PASS", "FAIL") -> PASS
A57: 52 | B57: 19HL00054 | C57: SITI HANIFAH | D57: 16.11.0074 | E57: 70 | F57: 80 | G57: 86 | H57: 78.67 | I57: PASS
A58: 53 | B58: 19HL00055 | C58: AKHMAD YUSUF FAUZI | D58: 16.11.0063 | E58: 86 | F58: 83 | G58: 93 | H58: 87.33 | I58: PASS
A59: 54 | B59: 19HL00056 | C59: SITI ROFIAH | D59: 16.11.0120 | E59: 80 | F59: 80 | G59: 96 | H59: 85.33 | I59: PASS
A60: 55 | B60: 19HL00057 | C60: RAFLY MAULANA | D60: 16.11.0295 | E60: 70 | F60: 50 | G60: 56 | H60: 58.67 | I60: PASS
A61: 56 | B61: 19HL00062 | C61: WIBI AFIF ABYANSYAH | D61: 16.12.0233 | E61: 80 | F61: 93 | G61: 96 | H61: 89.67 | I61: PASS
A62: 57 | B62: 19HL00063 | C62: ZULKARNAIN ROMADHON | D62: 16.12.0123 | E62: 83 | F62: 86 | G62: 93 | H62: 87.33 | I62: PASS
A63: 58 | B63: 19HL00064 | C63: FURQON NURUL'AZIZ | D63: 14.11.0251 | E63: 83 | F63: 90 | G63: 80 | H63: 84.33 | I63: PASS
A64: 59 | B64: 19HL00066 | C64: MIFTAKHUL RIZKI D | D64: 16.12.0178 | E64: 93 | F64: 100 | G64: 93 | H64: 95.33 | I64: PASS
A65: 60 | B65: 19HL00067 | C65: BINTANG RAMADAN | D65: 16.12.0148 | E65: 93 | F65: 86 | G65: 90 | H65: 89.67 | I65: PASS
A66: 61 | B66: 19HL00068 | C66: TRI MARDANI | D66: 16.12.0211 | E66: 96 | F66: 96 | G66: 83 | H66: 91.67 | I66: PASS
A67: 62 | B67: 19HL00069 | C67: FAUZAN DAFFA IBNU YUSUF | D67: 16.12.0073 | E67: 83 | F67: 93 | G67: 93 | H67: 89.67 | I67: PASS
A68: 63 | B68: 19HL00070 | C68: MUHAMAD FARID EL FIRDAUS | D68: 16.12.0104 | E68: 73 | F68: 86 | G68: 80 | H68: 79.67 | I68: PASS
A69: 64 | B69: 19HL00071 | C69: TRIANA NUR SYAMSIYAH | D69: 16.12.0165 | E69: 96 | F69: 93 | G69: 90 | H69: 93 | I69: PASS
A70: 65 | B70: 19HL00072 | C70: VEGA DELIA YUSI VEBRIANI | D70: 16.12.0213 | E70: 86 | F70: 83 | G70: 83 | H70: 84 | I70: PASS
A71: 66 | B71: 19HL00073 | C71: WIWIT PURWIYATNI | D71: 16.12.0098 | E71: 83 | F71: 90 | G71: 83 | H71: 85.33 | I71: PASS
A72: 67 | B72: 19HL00074 | C72: VIKI CAHYANI | D72: 16.12.0059 | E72: 80 | F72: 83 | G72: 80 | H72: 81 | I72: PASS
A73: 68 | B73: 19HL00075 | C73: SEPTI UJI LESTARI | D73: 16.12.0088 | E73: 86 | F73: 86 | G73: 93 | H73: 88.33 | I73: PASS
A74: 69 | B74: 19HL00076 | C74: OKTA RIAN IBRAHIM | D74: 16.12.0107 | E74: 76 | F74: 90 | G74: 93 | H74: 86.33 | I74: PASS
A75: 70 | B75: 19HL00077 | C75: TRIO WICAKSONO | D75: 16.12.0099 | E75: 80 | F75: 80 | G75: 73 | H75: 77.67 | I75: PASS
A76: 71 | B76: 19HL00078 | C76: YOGA SOEGOMO | D76: 16.12.0101 | E76: 70 | F76: 90 | G76: 96 | H76: 85.33 | I76: PASS
A77: 72 | B77: 19HL00080 | C77: RENDRA AGUNG PRABOWO | D77: 16.12.0190 | E77: 70 | F77: 90 | G77: 86 | H77: 82 | I77: PASS
A78: 73 | B78: 19HL00081 | C78: ROY DWI KUNCORO | D78: 16.12.0078 | E78: 83 | F78: 93 | G78: 86 | H78: 87.33 | I78: PASS
A79: 74 | B79: 19HL00082 | C79: AVIT LIA ANGGRAENI | D79: 16.12.0207 | E79: 93 | F79: 96 | G79: 83 | H79: 90.67 | I79: PASS
A80: 75 | B80: 19HL00083 | C80: ADELIA PUTRI WULANDARI | D80: 16.12.0206 | E80: 73 | F80: 33 | G80: 76 | H80: 60.67 | I80: PASS
A81: 76 | B81: 19HL00084 | C81: DIDIT AGUS PRIANTO | D81: 16.12.0203 | E81: 66 | F81: 73 | G81: 86 | H81: 75 | I81: PASS
A82: 77 | B82: 19HL00085 | C82: ARIEF SEPTYADY | D82: 16.12.0143 | E82: 70 | F82: 70 | G82: 86 | H82: 75.33 | I82: PASS
A83: 78 | B83: 19HL00086 | C83: ANDRIAN ERSA MAULANA | D83: 16.12.0202 | E83: 83 | F83: 80 | G83: 86 | H83: 83 | I83: PASS
A84: 79 | B84: 19HL00087 | C84: BAGUS MAULANA | D84: 16.12.0172 | E84: 96 | F84: 90 | G84: 83 | H84: 89.67 | I84: PASS
A85: 80 | B85: 19HL00088 | C85: DEDE SETIYO NUGROHO | D85: 16.12.0102 | E85: 80 | F85: 73 | G85: 86 | H85: 79.67 | I85: PASS
A86: 81 | B86: 19HL00089 | C86: MARETA KUMBARA PUTRI | D86: 16.12.0067 | E86: 76 | F86: 66 | G86: 70 | H86: 70.67 | I86: PASS
A87: 82 | B87: 19HL00092 | C87: ANING WAHYUNI | D87: 16.12.0167 | E87: 86 | F87: 80 | G87: 76 | H87: 80.67 | I87: PASS
A88: 83 | B88: 19HL00093 | C88: ASIH UDIANTI | D88: 16.12.0124 | E88: 93 | F88: 80 | G88: 100 | H88: 91 | I88: PASS
A89: 84 | B89: 19HL00094 | C89: BELINA INDAH MIANTI | D89: 16.12.0141 | E89: 86 | F89: 93 | G89: 90 | H89: 89.67 | I89: PASS
A90: 85 | B90: 19HL00095 | C90: ENDAH TRI WINARSIH | D90: 16.11.0168 | E90: 53 | F90: 36 | G90: 60 | H90: =ROUND(AVERAGE(E90:G90),2) -> 49.67 | I90: =IF(H90>=55,"PASS", "FAIL") -> FAIL
A91: 86 | B91: 19HL00096 | C91: CHOIRUNNISA KUSUMAWARDANI | D91: 16.12.0109 | E91: 76 | F91: 96 | G91: 96 | H91: 89.33 | I91: PASS
A92: 87 | B92: 19HL00097 | C92: WINARA FATIN NIHAYAH | D92: 16.11.0099 | E92: 90 | F92: 100 | G92: 80 | H92: =ROUND(AVERAGE(E92:G92),2) -> 90 | I92: =IF(H92>=55,"PASS", "FAIL") -> PASS
A93: 88 | B93: 19HL00098 | C93: PUJI SULIS STIAWATI | D93: 16.12.0221 | E93: 86 | F93: 83 | G93: 70 | H93: 79.67 | I93: PASS
A94: 89 | B94: 19HL00099 | C94: DITA KUSUMA | D94: 16.12.0197 | E94: 90 | F94: 93 | G94: 90 | H94: 91 | I94: PASS
A95: 90 | B95: 19HL00100 | C95: ALFINA RIZQIYA | D95: 16.12.0103 | E95: 73 | F95: 60 | G95: 60 | H95: 64.33 | I95: PASS
A96: 91 | B96: 19HL00101 | C96: NUROKTA FAUZY SAPUTRA | D96: 16.11.0052 | E96: 90 | F96: 83 | G96: 80 | H96: 84.33 | I96: PASS
A97: 92 | B97: 19HL00102 | C97: ADENT BIMA PRASETYA | D97: 16.11.0301 | E97: 86 | F97: 90 | G97: 80 | H97: 85.33 | I97: PASS
A98: 93 | B98: 19HL00103 | C98: SINDI ROSITA MULYANI | D98: 16.11.0045 | E98: 76 | F98: 60 | G98: 60 | H98: 65.33 | I98: PASS
A99: 94 | B99: 19HL00104 | C99: RICCI DIAN FIRMANSYAH | D99: 16.11.0067 | E99: 90 | F99: 93 | G99: 86 | H99: 89.67 | I99: PASS
A100: 95 | B100: 19HL00105 | C100: TEGUH MARDIONO | D100: 16.11.0195 | E100: 100 | F100: 96 | G100: 86 | H100: =ROUND(AVERAGE(E100:G100),2) -> 94 | I100: =IF(H100>=55,"PASS", "FAIL") -> PASS
A101: 96 | B101: 19HL00106 | C101: RIZKY FIRDAUSI | D101: 16.11.0192 | E101: 43 | F101: 73 | G101: 53 | H101: 56.33 | I101: PASS
A102: 97 | B102: 19HL00108 | C102: SIDIQ FATKHUL MUGNI | D102: 16.11.0233 | E102: 83 | F102: 83 | G102: 96 | H102: 87.33 | I102: PASS
A103: 98 | B103: 19HL00109 | C103: YUSUP EFENDI | D103: 16.11.0142 | E103: 76 | F103: 80 | G103: 83 | H103: 79.67 | I103: PASS
A104: 99 | B104: 19HL00110 | C104: UNTUNG NUR KHIFNI | D104: 16.11.0137 | E104: 60 | F104: 73 | G104: 66 | H104: 66.33 | I104: PASS
A105: 100 | B105: 19HL00111 | C105: ZIDNI MUJIB | D105: 16.11.0160 | E105: 93 | F105: 86 | G105: 93 | H105: =ROUND(AVERAGE(E105:G105),2) -> 90.67 | I105: =IF(H105>=55,"PASS", "FAIL") -> PASS
A106: 101 | B106: 19HL00112 | C106: DANI ALVIANTO | D106: 16.11.0004 | E106: 86 | F106: 90 | G106: 73 | H106: 83 | I106: PASS
A107: 102 | B107: 19HL00113 | C107: WAHYU AJI PANGESTU | D107: 16.11.0309 | E107: 83 | F107: 86 | G107: 100 | H107: 89.67 | I107: PASS
A108: 103 | B108: 19HL00114 | C108: RANGGA PRANGWEDANA JANUWARSA | D108: 17.11.0013 | E108: 96 | F108: 96 | G108: 100 | H108: 97.33 | I108: PASS
A109: 104 | B109: 19HL00115 | C109: ADIT SETIAWAN | D109: 16.11.0017 | E109: 60 | F109: 66 | G109: 66 | H109: 64 | I109: PASS
A110: 105 | B110: 19HL00116 | C110: ALFIANSYAH ARIFUDIN AKBAR | D110: 16.11.0049 | E110: 40 | F110: 90 | G110: 86 | H110: 72 | I110: PASS
A111: 106 | B111: 19HL00117 | C111: MUCHAMAD ARIEF SIDIK | D111: 16.11.0296 | E111: 100 | F111: 90 | G111: 93 | H111: =ROUND(AVERAGE(E111:G111),2) -> 94.33 | I111: =IF(H111>=55,"PASS", "FAIL") -> PASS
A112: 107 | B112: 19HL00118 | C112: MUHAMMAD YUNUS | D112: 16.11.0076 | E112: 93 | F112: 73 | G112: 76 | H112: 80.67 | I112: PASS
A113: 108 | B113: 19HL00119 | C113: ANGGI PRADANA | D113: 15.11.0064 | E113: 80 | F113: 56 | G113: 73 | H113: 69.67 | I113: PASS
A114: 109 | B114: 19HL00120 | C114: PANJI WICAKSONO | D114: 15.11.0083 | E114: 40 | F114: 43 | G114: 50 | H114: 44.33 | I114: FAIL
A115: 110 | B115: 19HL00121 | C115: NOVIANTO | D115: 15.11.0074 | E115: 80 | G115: 86 | H115: =ROUND(AVERAGE(E115:G115),2) -> 
A116: 111 | B116: 19HL00122 | C116: ADITYA DANU WIBOWO | D116: 15.11.0089 | E116: 73 | F116: 56 | G116: 76 | H116: 68.33 | I116: PASS
A117: 112 | B117: 19HL00123 | C117: FAHMI AZIZ NURAHMAN | D117: 15.11.0115 | E117: 93 | F117: 93 | G117: 100 | H117: =ROUND(AVERAGE(E117:G117),2) -> 95.33 | I117: =IF(H117>=55,"PASS", "FAIL") -> PASS
A118: 113 | B118: 19HL00126 | C118: ADE NURRIZKY AFFRILIANTO | D118: 15.11.0071 | E118: 63 | F118: 26 | G118: 70 | H118: 53 | I118: FAIL
A119: 114 | B119: 19HL00127 | C119: WAHYU HARYADIANTO | D119: 15.11.0182 | E119: 83 | F119: 86 | G119: 90 | H119: 86.33 | I119: PASS
A120: 115 | B120: 19HL00128 | C120: WILDAN ABDILLAH | D120: 16.12.0121 | E120: 83 | F120: 90 | G120: 96 | H120: 89.67 | I120: PASS
A121: 116 | B121: 19HL00129 | C121: SHOFI MAULANA DHUHA | D121: 16.12.0218 | E121: 86 | F121: 70 | G121: 40 | H121: 65.33 | I121: PASS
A122: 117 | B122: 19HL00130 | C122: SIDIQ ARIEF PRASETYO | D122: 16.11.0011 | E122: 86 | F122: 90 | G122: 73 | H122: 83 | I122: PASS
A123: 118 | B123: 19HL00131 | C123: ANGGIT PRAKASA PUTRA | D123: 16.11.0012 | E123: 83 | F123: 83 | G123: 90 | H123: 85.33 | I123: PASS
A124: 119 | B124: 19HL00132 | C124: ROBBY ARI WIBOWO | D124: 16.12.0120 | E124: 96 | F124: 96 | G124: 93 | H124: 95 | I124: PASS
A125: 120 | B125: 19HL00133 | C125: TITO ARI KUSHARYANTO | D125: 15.11.0020 | E125: 93 | F125: 86 | G125: 100 | H125: 93 | I125: PASS
A126: 121 | B126: 19HL00134 | C126: STEVANI HEPPY HONCE R | D126: 15.12.0168 | E126: 86 | F126: 80 | G126: 76 | H126: 80.67 | I126: PASS
A127: 122 | B127: 19HL00135 | C127: MAULIDIA KARTIKA NUR H | D127: 16.12.0176 | E127: 73 | F127: 56 | G127: 36 | H127: 55 | I127: PASS
A128: 123 | B128: 19HL00136 | C128: JINNY SEPTIAMI | D128: 16.12.0201 | E128: 80 | F128: 93 | G128: 70 | H128: 81 | I128: PASS
A129: 124 | B129: 19HL00137 | C129: FADILA DAROJATU SIDQI | D129: 16.12.0130 | E129: 73 | F129: 73 | G129: 93 | H129: 79.67 | I129: PASS
A130: 125 | B130: 19HL00138 | C130: HASTIN ESA PRAMESTHI | D130: 16.11.0087 | E130: 66 | F130: 80 | G130: 93 | H130: 79.67 | I130: PASS
A131: 126 | B131: 19HL00139 | C131: DWI JOKO PURNOMO | D131: 17.11.0188 | E131: 96 | F131: 100 | G131: 93 | H131: 96.33 | I131: PASS
A132: 127 | B132: 19HL00142 | C132: ARIF SIDIK PRASETIYO | D132: 15.11.0007 | E132: 76 | F132: 90 | G132: 83 | H132: 83 | I132: PASS
A133: 128 | B133: 19HL00143 | C133: SYIFAUDDIN RAMLY | D133: 15.11.0230 | E133: 63 | F133: 63 | G133: 83 | H133: 69.67 | I133: PASS
A134: 129 | B134: 19HL00144 | C134: WAHYU DWI RATNASARI | D134: 18.12.0006 | E134: 73 | F134: 80 | G134: 73 | H134: 75.33 | I134: PASS
A135: 130 | B135: 19HL00145 | C135: KEVIN ESA SAPUTRA | D135: 16.11.0310 | E135: 70 | F135: 73 | G135: 70 | H135: 71 | I135: PASS
A136: 131 | B136: 19HL00146 | C136: HEGA FAISAL AGUSTIAN | D136: 16.11.0161 | E136: 93 | F136: 100 | G136: 96 | H136: 96.33 | I136: PASS
A137: 132 | B137: 19HL00147 | C137: ELSA YULIA AGUSTIN | D137: 16.12.0127 | E137: 76 | F137: 63 | G137: 73 | H137: 70.67 | I137: PASS
A138: 133 | B138: 19HL00148 | C138: ANGGER SEFTIYAN BAGUS BAHARI | D138: 16.12.0063 | E138: 100 | F138: 96 | G138: 96 | H138: 97.33 | I138: PASS
A139: 134 | B139: 19HL00149 | C139: LALU GERY HIDAYAT | D139: 16.12.0065 | E139: 56 | F139: 76 | G139: 73 | H139: 68.33 | I139: PASS
A140: 135 | B140: 19HL00151 | C140: RIDYA RISMANDA | D140: 16.12.0122 | E140: 90 | F140: 96 | G140: 83 | H140: 89.67 | I140: PASS
A141: 136 | B141: 19HL00152 | C141: TRI SUNDARI | D141: 16.11.0040 | E141: 70 | F141: 83 | G141: 73 | H141: 75.33 | I141: PASS
A142: 137 | B142: 19HL00153 | C142: SUHARTO AGUNG WIBAWANTO | D142: 16.12.0003 | E142: 83 | F142: 56 | G142: 70 | H142: 69.67 | I142: PASS
A143: 138 | B143: 19HL00154 | C143: SALAFUDIN RIDWAN HIDAYAT | D143: 16.12.0076 | E143: 93 | F143: 86 | G143: 90 | H143: 89.67 | I143: PASS
A144: 139 | B144: 19HL00155 | C144: AJIB AL HAKIM RAJO MEDAN | D144: 16.11.0208 | E144: 90 | F144: 76 | G144: 90 | H144: 85.33 | I144: PASS
A145: 140 | B145: 19HL00156 | C145: TEGUH SUDRAJAT | D145: 16.11.0253 | E145: 96 | F145: 100 | G145: 93 | H145: 96.33 | I145: PASS
A146: 141 | B146: 19HL00157 | C146: ADITYA BAYU IRGIYANTO | D146: 16.12.0193 | E146: 90 | G146: 76
A147: 142 | B147: 19HL00158 | C147: DESSANDY NUR RAMADHAN | D147: 16.12.0025 | E147: 73 | F147: 90 | G147: 83 | H147: 82 | I147: PASS
A148: 143 | B148: 19HL00159 | C148: ALI YAHYA ASHARI | D148: 16.12.0019 | E148: 73 | F148: 80 | G148: 80 | H148: 77.67 | I148: PASS
A149: 144 | B149: 19HL00160 | C149: OBI HARI SUTRISNO | D149: 16.11.0130 | E149: 73 | F149: 76 | G149: 76 | H149: 75 | I149: PASS
A150: 145 | B150: 19HL00161 | C150: BOSSI BANI MAJID | D150: 16.11.0191 | E150: 63 | F150: 60 | G150: 73 | H150: =ROUND(AVERAGE(E150:G150),2) -> 65.33 | I150: =IF(H150>=55,"PASS", "FAIL") -> PASS
A151: 146 | B151: 19HL00163 | C151: FEGA TRI SUBANTARA | D151: 16.11.0038 | E151: 96 | F151: 80 | G151: 90 | H151: 88.67 | I151: PASS
A152: 147 | B152: 19HL00164 | C152: FAHMI YAHYA | D152: 16.11.0001 | E152: 93 | F152: 90 | G152: 93 | H152: =ROUND(AVERAGE(E152:G152),2) -> 92 | I152: =IF(H152>=55,"PASS", "FAIL") -> PASS
A153: 148 | B153: 19HL00165 | C153: TRI BASKORO | D153: 16.11.0209 | E153: 66 | F153: 63 | G153: 63 | H153: 64 | I153: PASS
A154: 149 | B154: 19HL00166 | C154: YOSUA YANUARIFIN | D154: 16.11.0149 | E154: 73 | F154: 73 | G154: 90 | H154: 78.67 | I154: PASS
A155: 150 | B155: 19HL00167 | C155: FADILA AKTAR ZIYADI | D155: 16.11.0079 | E155: 73 | F155: 63 | G155: 80 | H155: 72 | I155: PASS
A156: 151 | B156: 19HL00168 | C156: BAYU IBNU SYAFIQ | D156: 16.11.0065 | E156: 86 | F156: 86 | G156: 86 | H156: 86 | I156: PASS
A157: 152 | B157: 19HL00169 | C157: FADIL | D157: 16.11.0136 | E157: 60 | F157: 63 | G157: 60 | H157: 61 | I157: PASS
A158: 153 | B158: 19HL00170 | C158: AZIZ WIBIE ADE SATRIO | D158: 16.11.0304 | E158: 70 | F158: 70 | G158: 86 | H158: 75.33 | I158: PASS
A159: 154 | B159: 19HL00171 | C159: RESTI UNDI INDRAWATI | D159: 16.11.0154 | E159: 93 | F159: 83 | G159: 96 | H159: =ROUND(AVERAGE(E159:G159),2) -> 90.67 | I159: =IF(H159>=55,"PASS", "FAIL") -> PASS
A160: 155 | B160: 19HL00172 | C160: TRIAN DAMAI | D160: 16.11.0180 | E160: 73 | F160: 66 | G160: 66 | H160: 68.33 | I160: PASS
A161: 156 | B161: 19HL00173 | C161: NURIZZA AMALIA LARASATI | D161: 16.11.0193 | E161: 86 | F161: 93 | G161: 93 | H161: 90.67 | I161: PASS
A162: 157 | B162: 19HL00174 | C162: NUNIK DWI HIDAYATUN | D162: 16.11.0051 | E162: 80 | F162: 80 | G162: 76 | H162: 78.67 | I162: PASS
A163: 158 | B163: 19HL00175 | C163: AGUNG TRI WIBOWO | D163: 16.11.0058 | E163: 56 | F163: 83 | G163: 80 | H163: 73 | I163: PASS
A164: 159 | B164: 19HL00176 | C164: FAJAR DWI SETIAWAN | D164: 16.11.0151 | E164: 83 | F164: 90 | G164: 90 | H164: =ROUND(AVERAGE(E164:G164),2) -> 87.67 | I164: =IF(H164>=55,"PASS", "FAIL") -> PASS
A165: 160 | B165: 19HL00177 | C165: MEI INDIANI | D165: 16.11.0097 | E165: 43 | F165: 56 | G165: 73 | H165: 57.33 | I165: PASS
A166: 161 | B166: 19HL00178 | C166: HENDRA BUDI SANTOSA | D166: 16.11.0050 | E166: 96 | F166: 90 | G166: 93 | H166: 93 | I166: PASS
A167: 162 | B167: 19HL00179 | C167: IDHA APRIAN FIRMANSYAH | D167: 16.11.0158 | E167: 83 | F167: 76 | G167: 93 | H167: 84 | I167: PASS
A168: 163 | B168: 19HL00180 | C168: DHANDY DARMA BOJANTO | D168: 16.11.0005 | E168: 90 | F168: 86 | G168: 90 | H168: =ROUND(AVERAGE(E168:G168),2) -> 88.67 | I168: =IF(H168>=55,"PASS", "FAIL") -> PASS
A169: 164 | B169: 19HL00181 | C169: MUHAMMAD YAFIE YULIANTO | D169: 16.12.0070 | E169: 80 | F169: 80 | G169: 83 | H169: 81 | I169: PASS
A170: 165 | B170: 19HL00182 | C170: DIMAS SETIA HARTADI | D170: 16.12.0018 | E170: 80 | F170: 70 | G170: 73 | H170: 74.33 | I170: PASS
A171: 166 | B171: 19HL00183 | C171: CAHYA NUR SIDIQ | D171: 16.11.0337 | E171: 83 | F171: 70 | G171: 66 | H171: 73 | I171: PASS
A172: 167 | B172: 19HL00184 | C172: SHERLINA TYAS UTAMI | D172: 16.11.0290 | E172: 86 | F172: 96 | G172: 83 | H172: 88.33 | I172: PASS
A173: 168 | B173: 19HL00185 | C173: SAPUTRA HENDARTO | D173: 16.11.0059 | E173: 76 | F173: 90 | G173: 100 | H173: 88.67 | I173: PASS
A174: 169 | B174: 19HL00186 | C174: GRISELA DIKI ARDIYANTO | D174: 16.11.0028 | E174: 90 | F174: 93 | G174: 83 | H174: =ROUND(AVERAGE(E174:G174),2) -> 88.67 | I174: =IF(H174>=55,"PASS", "FAIL") -> PASS
A175: 170 | B175: 19HL00187 | C175: RIZKY MAIDA KARTIKA | D175: 16.11.0062 | E175: 93 | F175: 93 | G175: 96 | H175: 94 | I175: PASS
A176: 171 | B176: 19HL00188 | C176: DIDIT JULIANTO INARDI | D176: 16.11.0020 | E176: 83 | F176: 0 | G176: 0 | H176: 27.67 | I176: FAIL
A177: 172 | B177: 19HL00189 | C177: MUHAMMAD REZA | D177: 16.11.0069 | E177: 83 | F177: 73 | G177: 76 | H177: 77.33 | I177: PASS
A178: 173 | B178: 19HL00190 | C178: TIKA OKTAVIA | D178: 16.11.0098 | E178: 90 | F178: 83 | G178: 100 | H178: 91 | I178: PASS
A179: 174 | B179: 19HL00191 | C179: SURATI NINGSIH | D179: 16.11.0043 | E179: 96 | F179: 66 | G179: 93 | H179: 85 | I179: PASS
A180: 175 | B180: 19HL00192 | C180: RISWATI | D180: 16.11.0129 | E180: 90 | F180: 76 | G180: 83 | H180: 83 | I180: PASS
A181: 176 | B181: 19HL00193 | C181: AGUSTIAN DWI SAMBODO | D181: 16.11.0106 | E181: 93 | F181: 90 | G181: 90 | H181: 91 | I181: PASS
A182: 177 | B182: 19HL00194 | C182: OKTRI FIANA DEWI | D182: 16.11.0184 | E182: 86 | F182: 96 | G182: 73 | H182: 85 | I182: PASS
A183: 178 | B183: 19HL00195 | C183: AFFAN SUKMA WIBRATA | D183: 16.11.0190 | E183: 83 | F183: 76 | G183: 63 | H183: 74 | I183: PASS
A184: 179 | B184: 19HL00196 | C184: AHMAD SUBHAN A'TOILAH | D184: 16.11.0302 | E184: 86 | F184: 63 | G184: 60 | H184: 69.67 | I184: PASS
A185: 180 | B185: 19HL00197 | C185: DEWANGGA BAYU LAKSONO | D185: 16.11.0236 | E185: 70 | F185: 30 | G185: 60 | H185: 53.33 | I185: FAIL
A186: 181 | B186: 19HL00198 | C186: NUR ANNISA DESTI C | D186: 16.11.0182 | E186: 70 | F186: 76 | G186: 56 | H186: 67.33 | I186: PASS
A187: 182 | B187: 19HL00199 | C187: KEMAL PANDU GRAHA | D187: 16.12.0163 | E187: 80 | F187: 83 | G187: 80 | H187: 81 | I187: PASS
A188: 183 | B188: 19HL00200 | C188: AKHMAD KHANAN AZKA | D188: 16.12.0086 | E188: 90 | F188: 86 | G188: 96 | H188: 90.67 | I188: PASS
A189: 184 | B189: 19HL00201 | C189: UNGGUH FAIZATURROHMAN | D189: 15.12.0157 | E189: 100 | F189: 90 | G189: 96 | H189: 95.33 | I189: PASS
A190: 185 | B190: 19HL00202 | C190: NIKO PUTRA AKBAR BILLAH | D190: 16.12.0222 | E190: 90 | F190: 93 | G190: 86 | H190: 89.67 | I190: PASS
A191: 186 | B191: 19HL00203 | C191: AGUNG TEJA KUSUMA | D191: 16.12.0195 | E191: 70 | F191: 76 | G191: 83 | H191: 76.33 | I191: PASS
A192: 187 | B192: 19HL00204 | C192: RULY NIKO DWI PUTRA | D192: 16.12.0140 | E192: 83 | F192: 90 | G192: 96 | H192: 89.67 | I192: PASS
A193: 188 | B193: 19HL00205 | C193: PRASETYO YANUAR ROMADANI | D193: 16.12.0066 | E193: 66 | F193: 63 | G193: 90 | H193: 73 | I193: PASS
A194: 189 | B194: 19HL00206 | C194: DANANG FAJAR JUNIANTO | D194: 16.12.0150 | E194: 83 | F194: 63 | G194: 76 | H194: 74 | I194: PASS
A195: 190 | B195: 19HL00207 | C195: CICIN RIZKI FH | D195: 16.12.0168 | E195: 66 | F195: 76 | G195: 63 | H195: 68.33 | I195: PASS
A196: 191 | B196: 19HL00209 | C196: ALBERTUS NOVIAN BAYU TRI ATMOKO | D196: 16.12.0166 | E196: 93 | F196: 86 | G196: 70 | H196: 83 | I196: PASS
A197: 192 | B197: 19HL00210 | C197: JANATA TAMARA RAFIDA | D197: 16.12.0075 | E197: 86 | F197: 90 | G197: 86 | H197: 87.33 | I197: PASS
A198: 193 | B198: 19HL00211 | C198: DWI SEPTI RAHAYU PRATIWI | D198: 16.12.0223 | E198: 70 | F198: 86 | G198: 86 | H198: 80.67 | I198: PASS
A199: 194 | B199: 19HL00212 | C199: M MAHDA MASHANI | D199: 16.12.0179 | E199: 83 | F199: 66 | G199: 80 | H199: 76.33 | I199: PASS
A200: 195 | B200: 19HL00213 | C200: KUKUH WIJANARKO | D200: 16.12.0146 | E200: 83 | F200: 70 | G200: 70 | H200: 74.33 | I200: PASS
A201: 196 | B201: 19HL00215 | C201: KRIS BUDIONO | D201: 16.12.0026 | E201: 43 | F201: 26 | G201: 70 | H201: 46.33 | I201: FAIL
... 153 more rows
